bitfinex-derivatives/quotes_SOLF0:USTF0_20250227
["timestamp","ask_amount","ask_price","bid_price","bid_amount"]
[1740690453739,5.9692,135.55,135.36,4.77944747]
[1740690454039,5.9692,135.55,135.31,13.56]
[1740690454040,0.04957131,135.5,135.47,0.04729563]
[1740690454234,3.9192,135.55,135.48,4.77647189]
[1740690454432,0.05587513,135.5,135.49,4.77647189]
[1740690454635,7.3864,135.55,135.48,4.77647189]
[1740690454836,206.9471,135.59,135.49,4.77647189]
[1740690455036,206.9471,135.59,135.42,4.77647189]
[1740690455236,206.9471,135.59,135.45,7.3913]
[1740690455435,206.9471,135.59,135.46,4.77647189]
[1740690455741,206.9471,135.59,135.47,4.77647189]
[1740690455932,7.3876,135.53,135.51,0.04900792]
[1740690456133,0.05192354,135.54,135.51,0.04900792]
[1740690457034,7.3876,135.52,135.51,0.04900792]
[1740690457240,0.05192354,135.54,135.42,4.77088068]
[1740690457430,229.1271,135.59,135.43,4.77088068]
[1740690457431,1.35321051,135.58,135.43,4.77088068]
[1740690457636,1.35321051,135.58,135.32,4.77088068]
[1740690457833,2.82835433,135.58,135.33,6.10534195]
[1740690458033,22.18,135.56,135.34,4.77088068]
[1740690458233,7.3924,135.44,135.35,4.77088068]
[1740690458439,0.05521375,135.46,135.44,0.05172433]
[1740690458737,0.0477534,135.46,135.44,0.04759125]
[1740690461037,3.8689,135.55,135.45,7.3915]
[1740690461231,3.8689,135.55,135.45,4.77088068]
[1740690461438,7.3857,135.56,135.5,7.3887]
[1740690461841,3.9008,135.6,135.43,4.77088068]
[1740690462043,7.3862,135.55,135.49,7.3889]
[1740690462342,0.04833724,135.52,135.5,0.04866247]
[1740690464545,0.00413724,135.52,135.5,0.04866247]
[1740690466446,7.39213724,135.52,135.5,0.04866247]
[1740690466845,0.00413724,135.52,135.5,0.04866247]
[1740690469544,0.00413724,135.52,135.5,7.43706247]
[1740690470147,0.00413724,135.52,135.5,0.04866247]
[1740690471741,7.3882,135.51,135.5,0.04866247]
[1740690473051,7.3909,135.46,135.44,4.75601484]
[1740690473248,3.7872,135.51,135.44,4.75601484]
[1740690473546,203.0154,135.59,135.39,4.75601484]
[1740690473751,7.3892,135.5,135.4,4.75601484]
[1740690473951,7.3892,135.5,135.41,4.75601484]
[1740690474155,7.3892,135.5,135.46,7.3909]
[1740690474454,0.04735122,135.47,135.46,7.3909]
[1740690475246,0.04735122,135.47,135.45,7.3911]
[1740690475445,0.04735122,135.47,135.44,0.04929162]
[1740690476854,7.43795122,135.47,135.44,0.04929162]
[1740690477048,0.04735122,135.47,135.44,0.04929162]
[1740690477754,0.04735122,135.47,135.44,7.44119162]
[1740690479452,7.3909,135.46,135.44,0.04929162]
[1740690480447,0.04735122,135.47,135.44,0.04929162]
[1740690480849,0.04735122,135.47,135.46,7.3909]
[1740690481559,7.3915,135.45,135.44,0.04929162]
[1740690481858,0.04735122,135.47,135.44,0.04929162]
[1740690483759,7.3915,135.45,135.44,0.04929162]
[1740690484266,0.04735122,135.47,135.44,0.04929162]
[1740690484563,14.7699,135.57,135.44,0.04929162]
[1740690484761,5.9153,135.56,135.43,4.75750677]
[1740690484961,5.9153,135.56,135.44,4.75750677]
[1740690485162,5.9153,135.56,135.45,4.75750677]
[1740690485862,0.05037341,135.52,135.49,0.05371374]
[1740690486059,7.3887,135.5,135.49,0.05371374]
[1740690486862,7.3884,135.51,135.49,0.05371374]
[1740690487058,0.05037341,135.52,135.49,0.05371374]
[1740690488164,0.05037341,135.52,135.5,4.75750677]
[1740690488456,7.3854,135.57,135.51,12.14530677]
[1740690488660,39.77040823,135.59,135.52,4.75750677]
[1740690488864,1.9394,135.6,135.52,4.75750677]
[1740690489061,9.97905751,135.61,135.53,4.75750677]
[1740690489269,29.07988703,135.62,135.54,6.08995453]
[1740690489465,10.69648703,135.62,135.56,0.05376429]
[1740690489662,10.69648703,135.62,135.57,18.15750677]
[1740690489863,10.69648703,135.62,135.58,4.75750677]
[1740690490064,10.69648703,135.62,135.59,4.75750677]
[1740690490262,10.69648703,135.62,135.6,4.75750677]
[1740690490566,10.69648703,135.62,135.61,4.75750677]
[1740690490766,10.69648703,135.62,135.6,0.04971602]
[1740690490767,10.74958441,135.62,135.6,0.04971602]
[1740690491266,10.74958441,135.62,135.61,11.19773175]
[1740690491772,10.74958441,135.62,135.61,224.20659931]
[1740690491969,84.69204542,135.63,135.61,224.20659931]
[1740690492171,84.69204542,135.63,135.62,4.75750677]
[1740690492463,84.69204542,135.63,135.62,18.57993175]
[1740690492668,84.69204542,135.63,135.62,34.25970677]
[1740690492968,200.88,135.78,135.63,7.3812]
[1740690493168,289.3828869,135.78,135.64,4.75750677]
[1740690493359,0.0534093,135.72,135.65,4.75750677]
[1740690493560,7.4306093,135.72,135.7,0.04768264]
[1740690493761,7.4306093,135.72,135.67,4.75750677]
[1740690493972,200.88,135.78,135.7,0.05666503]
[1740690494161,0.05268281,135.71,135.7,0.05666503]
[1740690494363,289.3828869,135.78,135.58,4.75750677]
[1740690494566,0.05272029,135.72,135.69,0.05353281]
[1740690494771,0.05272029,135.72,135.7,12.13530677]
[1740690494976,7.3736,135.78,135.71,4.75750677]
[1740690495176,5.9729,135.82,135.72,4.75750677]
[1740690495374,94.4757869,135.82,135.73,4.75750677]
[1740690495577,0.05135837,135.78,135.74,4.75750677]
[1740690495772,0.05135837,135.78,135.76,0.0503076]
[1740690496071,4.0261,135.82,135.76,4.75750677]
[1740690496271,92.5289869,135.82,135.68,4.75750677]
[1740690496575,7.374,135.77,135.76,0.05537735]
[1740690496770,7.374,135.77,135.76,7.735e-05]
[1740690496972,95.8768869,135.77,135.76,7.735e-05]
[1740690497573,7.374,135.77,135.76,7.735e-05]
[1740690498174,0.05556921,135.78,135.76,7.735e-05]
[1740690498779,7.374,135.77,135.76,7.735e-05]
[1740690499277,95.8768869,135.77,135.76,7.735e-05]
[1740690500379,97.8754869,135.77,135.76,7.735e-05]
[1740690501375,90.5014869,135.77,135.76,7.735e-05]
[1740690501781,88.5028869,135.77,135.76,7.735e-05]
[1740690501978,0.05556921,135.78,135.76,7.735e-05]
[1740690502871,0.05556921,135.78,135.76,7.37447735]
[1740690503283,0.05556921,135.78,135.76,7.735e-05]
[1740690503882,0.05556921,135.78,135.76,7.37467735]
[1740690504585,0.05556921,135.78,135.76,7.735e-05]
[1740690505086,0.05556921,135.78,135.77,7.374]
[1740690505683,0.05556921,135.78,135.77,29.474]
[1740690505884,6.921e-05,135.78,135.77,225.06645416]
[1740690506486,4.0456,135.9,135.77,217.69245416]
[1740690506783,1.8665,135.94,135.78,6.03369741]
[1740690507088,94.31015611,135.94,135.78,195.59245416]
[1740690507280,94.31015611,135.94,135.79,4.7035866]
[1740690507478,94.31015611,135.94,135.79,195.56053452]
[1740690507680,7.3695,135.86,135.85,0.04883044]
[1740690507886,0.05542237,135.88,135.85,0.04883044]
[1740690508080,88.50295611,135.88,135.79,190.88886756]
[1740690508283,88.55557878,135.88,135.85,0.05645045]
[1740690508477,88.50295611,135.88,135.79,190.88886756]
[1740690508679,0.056598,135.88,135.85,0.0480208]
[1740690508878,5.8072,135.94,135.8,4.667232]
[1740690509087,5.8072,135.94,135.86,7.3692]
[1740690509088,94.31015611,135.94,135.86,7.3692]
[1740690509289,0.04642484,135.88,135.83,0.05257902]
[1740690509489,5.8072,135.94,135.81,4.6611738]
[1740690509687,0.05561462,135.87,135.84,0.05591845]
[1740690509987,94.31015611,135.94,135.8,190.88886756]
[1740690510288,0.04652863,135.87,135.84,0.05352846]
[1740690510491,2.863e-05,135.87,135.84,190.94239602]
[1740690510686,5.8072,135.94,135.84,190.88886756]
[1740690510687,3.9407,135.94,135.84,190.88886756]
[1740690510883,1.9401,136.01,135.85,4.65443042]
[1740690511083,7.3655,135.93,135.85,190.88886756]
[1740690511387,92.34435611,136.01,135.85,190.88886756]
[1740690511585,7.3654,135.93,135.85,190.88886756]
[1740690511889,92.34435611,136.01,135.89,7.3672]
[1740690512187,92.34435611,136.01,135.82,13.38]
[1740690512188,7.3675,135.89,135.88,0.04732401]
[1740690512385,92.34435611,136.01,135.82,204.26886756]
[1740690512581,0.0566658,135.9,135.87,0.05205719]
[1740690512779,1.35389956,136.0,135.82,204.26886756]
[1740690512979,89.85685567,136.0,135.87,7.41730829]
[1740690513187,1.35389956,135.99,135.87,0.04900829]
[1740690513383,0.04702774,135.95,135.82,204.26886756]
[1740690513578,0.04702774,135.95,135.92,0.05351327]
[1740690513782,7.3668,135.91,135.82,204.26886756]
[1740690514089,88.50295611,135.95,135.82,204.26886756]
[1740690514286,0.0479193,135.88,135.85,0.05007586]
[1740690514592,3.7244,135.94,135.82,190.88886756]
[1740690514783,0.04992185,135.88,135.85,0.04663963]
[1740690514986,88.55287796,135.88,135.85,0.04663963]
[1740690515186,88.50295611,135.88,135.83,7.3707]
[1740690515387,7.369,135.87,135.85,0.04936178]
[1740690515993,7.41754462,135.88,135.85,0.04936178]
[1740690516290,0.04934462,135.88,135.85,0.04936178]
[1740690516892,0.04934462,135.88,135.87,7.3686]
[1740690517291,7.3659,135.92,135.88,7.3676]
[1740690517495,90.52315611,135.93,135.82,190.88886756]
[1740690517891,90.52315611,135.93,135.87,7.3683]
[1740690518098,90.52315611,135.93,135.82,190.88886756]
[1740690518390,7.3665,135.91,135.86,0.05184269]
[1740690518591,0.0527627,135.89,135.86,0.05184269]
[1740690518791,2.0202,135.93,135.86,0.05184269]
[1740690518989,7.3664,135.92,135.86,0.05184269]
[1740690519189,1.8687,135.94,135.86,0.05184269]
[1740690519492,4.0653,136.02,135.86,204.34071025]
[1740690519692,5.9517,136.02,135.86,204.28886756]
[1740690519996,5.9517,136.02,135.93,0.0475305]
[1740690519997,0.05003646,135.95,135.93,0.0475305]
[1740690520198,7.3642,135.96,135.86,13.4]
[1740690520399,0.05466907,135.95,135.93,0.04680346]
[1740690520591,0.05466907,135.95,135.86,13.4]
[1740690520791,88.50295611,135.95,135.93,0.05145022]
[1740690520991,88.5548166,135.95,135.93,0.05145022]
[1740690521294,88.5548166,135.95,135.81,13.38]
[1740690521493,3.8919,135.94,135.81,18.02101635]
[1740690521896,7.3661,135.92,135.88,7.3678]
[1740690522189,92.39485611,135.94,135.81,13.38]
[1740690522395,0.04642272,135.91,135.89,0.05337274]
[1740690522590,0.04642272,135.91,135.88,7.3677]
[1740690522791,0.04642272,135.91,135.89,0.04792669]
[1740690522997,7.3662,135.92,135.81,18.02391841]
[1740690523196,0.04689052,135.91,135.89,0.04655691]
[1740690523392,95.86915611,135.92,135.81,18.02391841]
[1740690523587,0.05530314,135.91,135.89,0.05024813]
[1740690523790,95.86915611,135.92,135.82,4.64391841]
[1740690523999,0.04933334,135.91,135.84,39.90625071]
[1740690524296,0.04933334,135.91,135.86,0.04777253]
[1740690524798,88.50295611,135.94,135.89,7.3672]
[1740690524999,7.3659,135.93,135.89,7.3672]
[1740690525494,95.86885611,135.93,135.84,39.90625071]
[1740690525701,95.86885611,135.93,135.9,7.3669]
[1740690525896,95.86885611,135.93,135.88,39.90625071]
[1740690525897,88.50295611,135.93,135.88,39.90625071]
[1740690526097,83.90438911,135.93,135.9,0.05592948]
[1740690526293,0.05103602,135.93,135.9,0.05592948]
[1740690526996,0.05103602,135.93,135.91,7.3664]
[1740690527201,0.05103602,135.93,135.9,0.05592948]
[1740690528001,83.85335309,135.93,135.9,0.05592948]
[1740690528698,7.3663,135.92,135.9,0.05592948]
[1740690528898,7.41817287,135.92,135.9,0.05592948]
[1740690529102,83.90522596,135.92,135.91,7.3664]
[1740690529497,83.90522596,135.92,135.9,0.05592948]
[1740690529704,83.90522596,135.92,135.9,7.42262948]
[1740690530304,83.84541858,135.92,135.91,47.27265071]
[1740690530804,91.21131858,135.92,135.91,39.90625071]
[1740690531006,93.08511858,135.92,135.91,21.46105071]
[1740690531207,93.08511858,135.92,135.9,87.36424329]
[1740690531208,7.3664,135.91,135.9,17.76167542]
[1740690531498,7.3664,135.91,135.9,26.43654318]
[1740690531901,14.7273,135.97,135.9,26.43654318]
[1740690532103,1.35425551,135.96,135.9,26.43654318]
[1740690532605,14.7273,135.97,135.9,26.43654318]
[1740690532606,7.3664,135.91,135.9,26.43654318]
[1740690533707,0.04941897,135.92,135.89,0.04768186]
[1740690534397,7.3668,135.91,135.89,0.04768186]
[1740690534803,0.04941897,135.92,135.89,0.04768186]
[1740690535105,0.04941897,135.92,135.91,7.3664]
[1740690535508,0.04941897,135.92,135.91,12.10432088]
[1740690535707,1.897e-05,135.92,135.91,12.10432088]
[1740690536911,1.897e-05,135.92,135.91,14.13482088]
[1740690537605,1.897e-05,135.92,135.91,14.14471752]
[1740690538006,1.897e-05,135.92,135.91,14.14474366]
[1740690539312,13.26,136.04,135.94,7.3643]
[1740690539506,7.3627,135.98,135.95,4.74784366]
[1740690539811,7.3627,135.98,135.96,4.75392322]
[1740690540011,7.3627,135.98,135.84,33.31010055]
[1740690540012,7.3627,135.98,135.97,2.322e-05]
[1740690540211,7.3651,135.94,135.86,2.0197]
[1740690540408,13.26,136.04,135.86,192.90856756]
[1740690540614,13.26,136.04,135.89,0.05002384]
[1740690540909,0.05639573,135.96,135.86,2.0197]
[1740690541212,1.35359688,136.01,135.86,2.0197]
[1740690541414,36.9045,135.99,135.85,2.0229]
[1740690541715,1.35359688,135.98,135.86,118.94350148]
[1740690541909,22.18,135.96,135.86,118.94350148]
[1740690542212,7.3686,135.87,135.86,76.75570148]
[1740690542407,0.05488883,135.93,135.86,49.43120148]
[1740690542611,22.18,135.92,135.86,49.43120148]
[1740690542814,1.35483046,135.91,135.86,49.43120148]
[1740690543013,294.9918,135.95,135.86,49.43120148]
[1740690543216,213.44,135.95,135.86,49.43120148]
[1740690543412,0.04825244,135.92,135.89,0.0490948]
[1740690543614,0.04825244,135.92,135.86,53.18930148]
[1740690543806,13.22,136.01,135.86,53.18930148]
[1740690544716,200.22,136.04,135.86,53.18930148]
[1740690544917,99.33090153,135.96,135.86,3.7581]
[1740690545113,32.38343606,135.96,135.94,0.05210976]
[1740690545315,100.14386368,135.97,135.87,206.28975703]
[1740690545513,100.14386368,135.97,135.88,1.32922564]
[1740690545721,89.04836368,135.97,135.88,211.81826667]
[1740690545912,89.04836368,135.97,135.89,16.87266811]
[1740690546217,89.04836368,135.97,135.9,2.80089598]
[1740690546510,0.05079931,135.94,135.93,7.3648]
[1740690546715,9.931e-05,135.94,135.93,211.45366756]
[1740690546918,89.04836368,135.97,135.93,226.14886756]
[1740690548018,0.05358767,135.96,135.94,7.3647]
[1740690548514,70.69661517,135.97,135.95,6.36532163]
[1740690548713,4.0503,136.08,135.95,6.36532163]
[1740690549116,4.0503,136.08,135.96,6.36532163]
[1740690549513,4.0503,136.08,135.94,237.293733]
[1740690549715,2.0345,136.08,136.01,0.05550865]
[1740690550719,9.3918,136.08,136.01,0.05550865]
[1740690550920,2.0345,136.08,136.01,0.05550865]
[1740690554536,9.3712,136.12,136.01,0.05550865]
[1740690554735,9.3712,136.12,135.98,5.71457787]
[1740690554736,3.8948,136.11,135.98,5.71457787]
[1740690554936,3.8948,136.11,136.05,0.0541388]
[1740690555833,59.25020693,136.2,136.05,0.0541388]
[1740690556033,5.8408,136.19,136.05,0.0541388]
[1740690556238,5.8408,136.19,136.02,1.32779125]
[1740690556436,5.8408,136.19,136.11,0.04675665]
[1740690557132,3.8933,136.19,136.11,0.04675665]
[1740690557730,3.8933,136.19,136.11,7.40235665]
[1740690558339,1.9234,136.23,136.12,7.355]
[1740690558540,3.9246,136.22,136.12,7.355]
[1740690558835,3.9246,136.22,136.16,0.04710977]
[1740690559135,2.0135,136.22,136.16,0.04710977]
[1740690559334,1.9111,136.29,136.16,0.04710977]
[1740690559635,1.9111,136.29,136.1,1.32685764]
[1740690559829,1.9111,136.29,136.21,0.04893812]
[1740690560027,1.9111,136.29,136.12,1.32685764]
[1740690560229,1.9111,136.29,136.24,0.04857795]
[1740690560437,1.9111,136.29,136.12,1.32685764]
[1740690560634,1.9111,136.29,136.25,0.05156227]
[1740690560835,1.9111,136.29,136.17,13.14]
[1740690561033,1.9111,136.29,136.26,0.04776062]
[1740690561338,1.9111,136.29,136.23,7.3489]
[1740690561532,1.9111,136.29,136.26,0.05344468]
[1740690565939,7.3444,136.32,136.26,0.05344468]
[1740690566138,7.3428,136.35,136.26,0.05344468]
[1740690566339,7.3428,136.35,136.18,6.28166567]
[1740690566340,5.719,136.38,136.25,13.08]
[1740690566543,5.719,136.38,136.29,0.05043879]
[1740690566738,5.719,136.38,136.25,13.08]
[1740690567041,5.719,136.38,136.32,0.04865515]
[1740690567241,5.719,136.38,136.2,13.06]
[1740690567444,5.719,136.38,136.21,5.0002668]
[1740690567445,7.3458,136.3,136.21,5.0002668]
[1740690567745,5.719,136.38,136.23,7.3488]
[1740690567939,7.3463,136.29,136.23,12.3490668]
[1740690568244,5.719,136.38,136.23,7.349]
[1740690568437,0.05189529,136.27,136.25,0.04797142]
[1740690568638,7.3469,136.28,136.22,11.2081598]
[1740690568842,0.05605211,136.27,136.25,0.04853718]
[1740690569138,0.05605211,136.27,136.22,6.207893]
[1740690569341,2.06675211,136.27,136.22,3.138593]
[1740690569541,7.35,136.22,136.17,12.3522668]
[1740690569741,7.35,136.22,136.17,5.0002668]
[1740690570047,7.3484,136.25,136.17,5.0002668]
[1740690570348,0.04701197,136.21,136.18,0.04662208]
[1740690570648,0.04701197,136.21,136.2,7.3508]
[1740690571039,0.04701197,136.21,136.19,7.3512]
[1740690571247,0.04701197,136.21,136.18,5.04134892]
[1740690571644,0.04701197,136.21,136.2,7.3508]
[1740690571844,0.04701197,136.21,136.18,5.04134892]
[1740690572041,0.04701197,136.21,136.18,0.04662208]
[1740690572246,7.3513,136.19,136.18,0.04662208]
[1740690572741,7.3513,136.19,136.13,9.46074681]
[1740690572742,7.3537,136.15,136.13,14.45547365]
[1740690572942,1.8555,136.26,136.13,4.99472684]
[1740690573148,1.8555,136.26,136.13,4.99549348]
[1740690573339,7.3508,136.2,136.16,7.3528]
[1740690573546,1.8555,136.26,136.13,12.98972157]
[1740690573738,1.8555,136.26,136.12,12.98972157]
[1740690573940,0.0563823,136.21,136.18,7.40007338]
[1740690574246,0.0563823,136.21,136.18,0.04837338]
[1740690574441,0.0563823,136.21,136.2,7.3508]
[1740690575238,8.23e-05,136.21,136.2,7.3508]
[1740690575446,8.23e-05,136.21,136.2,29.3708]
[1740690575644,8.23e-05,136.21,136.2,20.34052157]
[1740690575841,8.23e-05,136.21,136.2,12.34629348]
[1740690576144,8.23e-05,136.21,136.2,34.36629348]
[1740690576346,8.23e-05,136.21,136.2,42.36052157]
[1740690576546,8.23e-05,136.21,136.2,20.34052157]
[1740690576749,8.23e-05,136.21,136.2,12.34629348]
[1740690577150,8.23e-05,136.21,136.2,7.3508]
[1740690577448,8.23e-05,136.21,136.2,12.34629348]
[1740690578145,8.23e-05,136.21,136.2,34.36629348]
[1740690578451,8.23e-05,136.21,136.2,20.34052157]
[1740690578639,82.50285018,136.43,136.2,35.00972157]
[1740690578945,3.7628,136.37,136.21,5.35136533]
[1740690579144,3.7628,136.37,136.33,7.3437]
[1740690579539,3.7628,136.37,136.22,13.00913212]
[1740690579744,0.04738741,136.36,136.34,0.04795543]
[1740690579946,3.7628,136.37,136.27,12.98]
[1740690580143,3.7628,136.37,136.28,13.00913212]
[1740690580453,3.7628,136.37,136.29,13.00913212]
[1740690580652,3.7628,136.37,136.3,13.00913212]
[1740690580948,3.7628,136.37,136.31,5.00351235]
[1740690581251,7.3436,136.34,136.29,5.00351235]
[1740690581452,7.3436,136.34,136.33,0.04938316]
[1740690581651,7.3436,136.34,136.28,5.00351235]
[1740690581847,3.7628,136.37,136.29,5.00351235]
[1740690582046,7.3436,136.34,136.3,5.00351235]
[1740690582252,3.7628,136.37,136.28,5.00351235]
[1740690582447,3.7628,136.37,136.29,5.00351235]
[1740690582649,3.7628,136.37,136.24,7.10825563]
[1740690582848,0.05038648,136.34,136.32,0.05045989]
[1740690583049,7.3451,136.31,136.27,7.3465]
[1740690583251,3.7628,136.37,136.25,15.1138754]
[1740690583549,7.39843846,136.32,136.28,7.40092678]
[1740690583748,0.05363846,136.32,136.28,0.05482678]
[1740690583952,0.05363846,136.32,136.29,0.05281222]
[1740690584152,7.3447,136.32,136.28,7.346]
[1740690584450,3.7628,136.37,136.28,7.346]
[1740690584651,7.3452,136.31,136.27,7.3468]
[1740690585143,0.05309751,136.3,136.28,0.0563501]
[1740690585340,7.39859751,136.3,136.27,7.3468]
[1740690585545,0.05309751,136.3,136.21,129.59872898]
[1740690585742,1.8437,136.37,136.21,124.19110801]
[1740690585951,95.82197401,136.36,136.21,111.23110801]
[1740690586152,94.4718,136.36,136.22,7.91962091]
[1740690586450,94.4718,136.36,136.22,37.88084034]
[1740690586644,7.3464,136.29,136.28,0.05146938]
[1740690586841,7.3464,136.29,136.23,7.91962091]
[1740690587046,7.3464,136.29,136.24,7.91962091]
[1740690587251,7.3464,136.29,136.23,7.91962091]
[1740690587554,7.3464,136.29,136.26,7.3472]
[1740690587751,1.9727,136.35,136.26,7.3472]
[1740690587956,0.05146622,136.29,136.26,7.97305862]
[1740690588148,1.9727,136.35,136.23,7.91962091]
[1740690588348,0.05264048,136.29,136.27,7.3467]
[1740690588544,0.05264048,136.29,136.22,29.96121943]
[1740690588545,7.3446,136.32,136.28,7.91962091]
[1740690588851,0.05114892,136.29,136.27,0.04857461]
[1740690589043,0.05114892,136.29,136.28,1.8278639]
[1740690589245,2.02914892,136.29,136.22,29.96121943]
[1740690589453,2.0431,136.28,136.24,7.3483]
[1740690589653,2.0431,136.28,136.21,29.96121943]
[1740690589952,2.0431,136.28,136.26,7.3472]
[1740690590351,2.09232861,136.28,136.26,0.0510232]
[1740690590550,2.09232861,136.28,136.24,7.3483]
[1740690591252,2.09232861,136.28,136.25,7.348]
[1740690591654,2.09232861,136.28,136.25,7.3984085]
[1740690591857,2.09232861,136.28,136.25,0.0504085]
[1740690592352,2.09232861,136.28,136.26,7.3471]
[1740690593359,2.861e-05,136.28,136.25,0.0504085]
[1740690593652,2.861e-05,136.28,136.27,7.347]
[1740690593856,1.9599,136.37,136.25,0.0504085]
[1740690594056,1.9599,136.37,136.23,10.14333249]
[1740690594447,1.9599,136.37,136.24,14.6972]
[1740690594648,1.9599,136.37,136.25,17.74804117]
[1740690594848,1.9599,136.37,136.26,4.88757861]
[1740690595053,7.31e-05,136.32,136.3,0.04849427]
[1740690595253,1.9599,136.37,136.31,4.88757861]
[1740690595454,1.9599,136.37,136.32,4.88757861]
[1740690595756,1.9599,136.37,136.33,4.88757861]
[1740690595957,1.9599,136.37,136.35,7.3423]
[1740690596156,1.9599,136.37,136.36,4.88757861]
[1740690596356,2.01066257,136.37,136.36,4.88757861]
[1740690596856,6.257e-05,136.37,136.36,12.22967861]
[1740690597056,6.257e-05,136.37,136.36,12.23722636]
[1740690597563,1.9059,136.41,136.4,7.34]
[1740690597754,1.9059,136.41,136.4,12.23512636]
[1740690598764,0.05140514,136.42,136.4,4.89512636]
[1740690598961,0.05140514,136.42,136.41,12.23452636]
[1740690599157,0.05140514,136.42,136.41,20.07359734]
[1740690599561,5.14e-06,136.42,136.41,20.07359734]
[1740690600361,5.14e-06,136.42,136.41,69.55371537]
[1740690600567,1.9186,136.49,136.47,7.3362]
[1740690600769,1.9186,136.49,136.48,12.73419734]
[1740690603866,0.04960893,136.5,136.48,12.73419734]
[1740690604065,0.04960893,136.5,136.49,12.73419734]
[1740690606872,0.04960893,136.5,136.49,20.06929734]
[1740690607171,5.9153,136.6,136.49,12.73419734]
[1740690607382,5.9153,136.6,136.5,14.65319734]
[1740690607583,5.9153,136.6,136.51,12.73419734]
[1740690607778,5.9153,136.6,136.52,12.73419734]
[1740690607984,7.3312,136.57,136.53,12.73419734]
[1740690608284,7.3312,136.57,136.54,4.87388153]
[1740690608485,0.0533166,136.56,136.54,0.04940645]
[1740690608876,0.0533166,136.56,136.52,12.66546915]
[1740690609083,0.0533166,136.56,136.49,4.8672587]
[1740690609380,5.9153,136.6,136.5,4.8672587]
[1740690609587,5.9153,136.6,136.51,4.8672587]
[1740690609786,5.9153,136.6,136.47,12.66546915]
[1740690609983,5.9153,136.6,136.48,4.8672587]
[1740690610188,0.0462979,136.55,136.52,3.292e-05]
[1740690610392,7.333,136.53,136.52,3.292e-05]
[1740690610785,29.313,136.53,136.52,3.292e-05]
[1740690610985,7.333,136.53,136.52,3.292e-05]
[1740690611588,0.0462979,136.55,136.52,3.292e-05]
[1740690612293,7.333,136.53,136.52,3.292e-05]
[1740690613087,29.313,136.53,136.52,3.292e-05]
[1740690615893,7.333,136.53,136.52,3.292e-05]
[1740690616092,29.313,136.53,136.52,3.292e-05]
[1740690616989,21.98,136.53,136.39,4.8672587]
[1740690617194,7.34,136.4,136.38,3.7959]
[1740690617395,14.6686,136.51,136.38,3.7959]
[1740690617688,14.6686,136.51,136.41,7.339]
[1740690617894,14.6686,136.51,136.38,3.7959]
[1740690618095,14.6686,136.51,136.38,8.6631587]
[1740690618292,7.3384,136.43,136.38,3.7959]
[1740690618491,7.3384,136.43,136.39,4.8672587]
[1740690618687,0.04707417,136.42,136.4,4.8672587]
[1740690618895,7.3365,136.47,136.41,4.8672587]
[1740690619196,20.3999,136.52,136.39,4.8672587]
[1740690619396,20.3999,136.52,136.39,12.2076587]
[1740690619793,14.6683,136.51,136.39,4.8672587]
[1740690619993,0.0533902,136.47,136.44,0.04679055]
[1740690620397,7.3373,136.45,136.44,0.04679055]
[1740690620797,7.34,136.4,136.39,4.8672587]
[1740690621096,14.6683,136.51,136.39,4.8672587]
[1740690621295,7.3385,136.43,136.4,4.8672587]
[1740690621498,14.6683,136.51,136.39,4.8672587]
[1740690621792,7.3381,136.44,136.4,4.8672587]
[1740690621999,0.05403392,136.46,136.44,0.0496884]
[1740690622300,14.6683,136.51,136.44,0.04774422]
[1740690622497,7.3373,136.45,136.44,0.04774422]
[1740690623394,0.04937076,136.46,136.44,0.04774422]
[1740690623594,0.65812156,136.6,136.45,4.8672587]
[1740690623595,15.31752156,136.6,136.45,4.8672587]
[1740690623798,2.0189,136.58,136.46,12.66546915]
[1740690623995,7.3329,136.54,136.47,6.7528587]
[1740690624198,2.0189,136.58,136.48,4.8672587]
[1740690624399,2.0189,136.58,136.49,4.8672587]
[1740690624599,2.0189,136.58,136.5,4.8672587]
[1740690624794,0.05286782,136.55,136.52,0.04685855]
[1740690626801,0.05286782,136.55,136.53,4.8672587]
[1740690627196,3.859,136.64,136.53,4.8672587]
[1740690627397,3.859,136.64,136.52,0.04685855]
[1740690627398,3.859,136.64,136.54,4.8672587]
[1740690627595,7.3278,136.63,136.56,7.331]
[1740690627799,3.859,136.64,136.53,12.66546915]
[1740690628000,3.859,136.64,136.54,6.8141587]
[1740690628199,3.859,136.64,136.55,4.8672587]
[1740690628394,0.05406348,136.6,136.58,7.38638197]
[1740690628904,0.05406348,136.6,136.58,0.05638197]
[1740690630703,0.05406348,136.6,136.58,7.38628197]
[1740690631003,0.05406348,136.6,136.58,0.05638197]
[1740690631204,0.05406348,136.6,136.59,7.3298]